bitfinex/quotes_ETHUSD_20241001
["timestamp","ask_amount","ask_price","bid_price","bid_amount"]
[1727752812861,7.59688,2632.7,2632.4,0.06334364]
[1727752813064,3.79855,2632.6,2632.4,0.06334364]
[1727752813268,3.79867,2632.5,2632.4,0.06334364]
[1727752813635,3.79902,2632.3,2631.8,0.7932]
[1727752813976,3.79876,2632.5,2631.9,3.86252795]
[1727752813977,3.79882,2632.4,2631.9,3.86252795]
[1727752814333,3.79882,2632.4,2631.9,0.06301795]
[1727752814537,3.79877,2632.5,2632.0,3.0]
[1727752814760,3.79882,2632.4,2632.0,3.0]
[1727752814970,3.79877,2632.5,2632.0,3.0]
[1727752815271,8.51733348,2632.5,2632.1,0.06297804]
[1727752815571,4.71856348,2632.5,2632.1,0.06297804]
[1727752815785,3.79896,2632.3,2632.1,0.06297804]
[1727752815967,3.79883,2632.4,2631.9,3.0]
[1727752816177,3.79883,2632.4,2631.9,6.79952]
[1727752816738,3.79883,2632.4,2632.0,0.06299799]
[1727752817350,4.71856348,2632.5,2632.0,0.06299799]
[1727752817673,3.79899,2632.3,2632.0,0.06299799]
[1727752817893,7.59803,2632.3,2632.0,0.06299799]
[1727752818066,3.79899,2632.3,2631.8,0.7932]
[1727752818268,3.79899,2632.3,2632.1,0.0630276]
[1727752818580,3.79899,2632.3,2631.9,3.0]
[1727752818581,3.79899,2632.3,2632.2,0.06300765]
[1727752818789,4.61389864,2632.3,2631.9,3.0]
[1727752818950,3.79899,2632.3,2632.0,0.06304755]
[1727752819887,3.79911,2632.2,2632.0,0.06304755]
[1727752820177,3.79911,2632.2,2632.1,0.0630276]
[1727752820679,4.62831,2632.2,2631.8,0.7932]
[1727752820987,1.72706463,2632.2,2631.6,0.8147]
[1727752821152,3.7997,2631.8,2631.3,0.8147]
[1727752821356,3.79966,2631.9,2631.3,0.8147]
[1727752821560,3.79985,2631.7,2631.3,0.8147]
[1727752821743,7.979296,2631.9,2631.3,0.8147]
[1727752821941,3.79968,2631.8,2631.3,0.8147]
[1727752822170,3.79991,2631.7,2631.3,0.8147]
[1727752823492,3.79991,2631.7,2631.4,3.5238399]
[1727752824695,3.79991,2631.7,2631.3,0.8147]
[1727752824696,3.80003,2631.6,2631.3,0.8147]
[1727752825004,3.79991,2631.7,2631.3,0.8147]
[1727752825308,3.79998,2631.6,2631.3,0.8147]
[1727752825499,3.79991,2631.7,2631.3,0.8147]
[1727752826162,7.59981,2631.7,2631.3,0.8147]
[1727752826722,3.79998,2631.6,2631.3,0.8147]
[1727752828300,3.7999,2631.7,2631.3,0.8147]
[1727752828499,3.80011,2631.5,2631.3,0.8147]
[1727752829006,3.80011,2631.5,2631.0,10.7055299]
[1727752829007,3.80011,2631.5,2631.0,6.9047399]
[1727752829301,3.80011,2631.5,2631.1,0.7561]
[1727752830776,3.80011,2631.5,2631.2,0.05926799]
[1727752831796,3.80011,2631.5,2631.2,0.1127195]
[1727752832407,3.80039,2631.4,2631.2,0.1127195]
[1727752832965,3.80011,2631.5,2631.0,3.3809]
[1727752833170,3.80011,2631.5,2631.1,0.11280472]
[1727752833868,3.80025,2631.4,2631.1,0.11280472]
[1727752834607,7.60009,2631.6,2631.1,0.11280472]
[1727752834900,3.80014,2631.5,2631.1,0.11280472]
[1727752836498,3.80033,2631.4,2631.1,0.11280472]
[1727752836665,3.80041,2631.3,2631.1,0.11280472]
[1727752836868,3.80033,2631.4,2631.1,0.11280472]
[1727752837378,3.80051,2631.3,2631.1,0.11280472]
[1727752838003,7.601,2631.3,2631.1,0.11280472]
[1727752838592,3.80049,2631.3,2631.1,0.11280472]
[1727752838797,7.60099,2631.3,2631.1,0.11280472]
[1727752838998,7.60097,2631.3,2631.1,0.11280472]
[1727752839176,3.80048,2631.3,2631.1,0.11280472]
[1727752840122,4.59144,2631.5,2631.1,0.11280472]
[1727752840410,3.79992,2631.7,2631.1,0.11280472]
[1727752840411,3.79992,2631.7,2631.1,0.92240472]
[1727752840571,4.5665,2631.8,2631.3,3.0]
[1727752840773,0.7667,2631.8,2631.4,0.11278411]
[1727752841092,4.56639,2631.8,2631.4,0.11278411]
[1727752841273,3.79983,2631.7,2631.4,0.11278411]
[1727752841467,0.7667,2631.8,2631.4,0.11278411]
[1727752841739,4.56642,2631.8,2631.4,0.11278411]
[1727752841904,4.62622,2632.1,2631.5,0.7506]
[1727752842150,11.14905,2632.3,2631.6,3.79995]
[1727752842415,3.79934,2632.1,2631.6,3.11274014]
[1727752844012,3.79934,2632.1,2631.6,3.91270014]
[1727752844313,3.79933,2632.1,2631.6,5.13680643]
[1727752844508,3.79933,2632.1,2631.6,1.33684643]
[1727752845207,3.79933,2632.1,2631.6,5.13680643]
[1727752846272,7.59869,2632.1,2631.6,1.33684643]
[1727752846568,3.79943,2632.0,2631.6,1.33684643]
[1727752848228,3.79956,2631.9,2631.6,1.33684643]
[1727752848390,3.79943,2632.0,2631.6,1.33684643]
[1727752852190,3.79943,2632.0,2631.6,0.11274014]
[1727752852896,3.79916,2632.2,2631.6,0.11274014]
[1727752852897,7.59838,2632.2,2631.7,0.8321]
[1727752853104,3.79933,2632.1,2631.7,0.8321]
[1727752853303,3.79933,2632.1,2631.8,0.11255187]
[1727752853530,3.79933,2632.1,2631.7,0.8321]
[1727752853944,3.79933,2632.1,2631.8,0.11255187]
[1727752854283,3.79933,2632.1,2631.7,0.8321]
[1727752854444,3.79933,2632.1,2631.9,0.11252989]
[1727752854618,7.59834,2632.2,2631.8,0.11255187]
[1727752854937,3.79927,2632.1,2631.7,0.8321]
[1727752855134,3.79927,2632.1,2631.9,0.11252989]
[1727752855304,3.79916,2632.2,2631.8,0.11255187]
[1727752855506,3.79916,2632.2,2632.0,0.11250791]
[1727752855710,3.79916,2632.2,2631.9,0.11252989]
[1727752855932,3.79916,2632.2,2632.1,0.11248593]
[1727752856131,7.59836,2632.2,2632.0,0.11250791]
[1727752856445,7.59836,2632.2,2631.7,4.63189]
[1727752856446,3.79916,2632.2,2632.1,0.11248593]
[1727752856947,0.7745,2632.8,2631.8,3.5240769]
[1727752857117,4.006,2633.5,2632.5,3.5240769]
[1727752857118,3.79784,2633.1,2632.5,3.5240769]
[1727752857302,3.79761,2633.3,2632.8,3.5240769]
[1727752857505,3.79745,2633.4,2633.0,3.5240769]
[1727752857699,11.14715,2633.6,2633.0,3.5240769]
[1727752857700,0.8041,2633.6,2633.0,4.2945769]
[1727752857905,3.79745,2633.4,2633.1,0.11208072]
[1727752858344,0.39712935,2633.8,2633.1,0.11208072]
[1727752858345,4.19399935,2633.8,2633.1,6.90985072]
[1727752858514,4.19399935,2633.8,2633.2,7.3216069]
[1727752858720,3.79658,2634.0,2633.6,0.8026]
[1727752859132,3.79658,2634.0,2633.7,0.11169758]
[1727752860046,4.60117,2634.2,2633.7,0.11169758]
[1727752860320,4.256387,2634.2,2633.7,0.11169758]
[1727752860547,3.79636,2634.1,2633.7,0.11169758]
[1727752862951,3.79612,2634.3,2633.7,0.11169758]
[1727752863541,3.79612,2634.3,2633.7,3.90852758]
[1727752863912,4.61234,2634.5,2633.8,3.0]
[1727752864039,3.79584,2634.5,2634.0,3.7613]
[1727752864488,3.79584,2634.5,2634.1,0.11050153]
[1727752865168,7.59174,2634.5,2634.1,0.11050153]
[1727752865361,3.79584,2634.5,2634.1,0.11050153]
[1727752868542,3.79557,2634.7,2634.1,0.11050153]
[1727752868739,3.79541,2634.8,2634.1,4.70480066]
[1727752868985,3.79541,2634.8,2634.1,8.50105066]
[1727752869181,3.79525,2634.9,2634.2,4.6007]
[1727752869342,3.79536,2634.8,2634.2,4.6007]
[1727752869544,3.79536,2634.8,2634.3,0.11045765]
[1727752869744,11.14497,2635.1,2634.4,0.8149]
[1727752869947,7.35,2635.1,2634.7,3.79539]
[1727752870180,3.7948,2635.2,2634.8,0.7523]
[1727752870386,3.7948,2635.2,2634.8,0.86264798]
[1727752870959,3.79468,2635.3,2634.8,0.86264798]
[1727752870960,3.79492,2635.1,2634.8,0.86264798]
[1727752871940,3.79468,2635.3,2634.8,0.86264798]
[1727752872467,3.79479,2635.2,2634.8,0.86264798]
[1727752872875,3.79507,2635.0,2634.8,0.86264798]
[1727752873097,11.1137569,2635.2,2634.8,0.86264798]
[1727752873303,8.43024259,2635.2,2634.8,0.86264798]
[1727752873789,7.3186269,2635.4,2634.8,7.65791798]
[1727752873989,11.1132569,2635.4,2634.8,7.65791798]
[1727752874188,3.79468,2635.3,2634.8,7.65791798]
[1727752874787,11.1132269,2635.4,2634.8,7.65791798]
[1727752874961,3.79466,2635.3,2634.8,7.65791798]
[1727752875161,3.79466,2635.3,2634.8,3.86264798]
[1727752875369,3.79466,2635.3,2634.8,0.86264798]
[1727752875979,7.3186269,2635.4,2634.8,0.86264798]
[1727752876179,3.79479,2635.2,2634.8,0.86264798]
[1727752876564,7.3188669,2635.2,2634.8,0.86264798]
[1727752876771,7.3192469,2635.0,2634.8,0.11034798]
[1727752877055,3.79517,2635.0,2634.6,0.8284]
[1727752877429,3.79517,2635.0,2634.9,0.10939868]
[1727752877606,3.79517,2635.0,2634.6,0.8284]
[1727752877887,4.61692,2635.1,2634.6,0.8284]
[1727752878090,4.61692,2635.1,2634.7,0.10943843]
[1727752878299,3.79516,2635.0,2634.7,0.10943843]
[1727752878660,3.79525,2634.9,2634.7,0.10943843]
[1727752879358,4.68228836,2635.1,2634.7,0.10943843]
[1727752880290,3.795,2635.1,2634.7,0.10943843]
[1727752880481,3.79515,2635.0,2634.7,0.10943843]
[1727752881854,3.79523,2634.9,2634.7,0.10943843]
[1727752885192,3.79535,2634.8,2634.7,0.10943843]
[1727752885378,3.79535,2634.8,2634.3,0.8106]
[1727752885892,3.79535,2634.8,2634.4,0.10584558]
[1727752886059,3.79535,2634.8,2634.4,3.10584558]
[1727752886481,3.79551,2634.7,2634.4,0.10584558]
[1727752887507,7.3194269,2634.8,2634.4,0.10584558]
[1727752887706,3.79565,2634.6,2634.4,0.10584558]
[1727752887992,3.79565,2634.6,2634.2,3.0]
[1727752888159,7.3194269,2634.8,2634.2,3.0]
[1727752888359,3.79554,2634.7,2634.2,3.0]
[1727752888560,3.79554,2634.7,2634.3,0.10592083]
[1727752888791,3.79554,2634.7,2634.2,3.0]
[1727752889009,3.79554,2634.7,2634.3,0.10592083]
[1727752889154,7.3194269,2634.8,2634.3,0.10592083]
[1727752889155,3.79565,2634.6,2634.3,0.10592083]
[1727752889353,4.60275269,2634.7,2634.1,4.57905]
[1727752889558,3.79566,2634.6,2634.4,0.10589889]
[1727752889790,3.79583,2634.5,2634.1,0.7828]
[1727752889964,7.3197369,2634.6,2634.1,0.7828]
[1727752890369,11.1154569,2634.6,2634.1,0.7828]
[1727752890598,3.79581,2634.5,2634.1,0.7828]
[1727752890978,3.79581,2634.5,2634.2,0.10256045]
[1727752893678,3.796,2634.4,2634.2,0.10256045]
[1727752893880,3.79607,2634.3,2634.2,0.10256045]
[1727752894275,3.79607,2634.3,2634.0,0.3807]
[1727752894513,3.79607,2634.3,2634.2,0.10256045]
[1727752894716,3.79607,2634.3,2634.1,0.10258239]
[1727752894915,3.79607,2634.3,2634.2,0.10256045]
[1727752895276,3.79607,2634.3,2634.0,0.3807]
[1727752895589,3.79607,2634.3,2634.1,0.10258239]
[1727752896413,3.79607,2634.3,2633.9,0.3807]
[1727752896603,3.79625,2634.2,2634.0,0.48330433]
[1727752896988,3.79616,2634.3,2634.0,0.48330433]
[1727752897329,3.79636,2634.1,2634.0,0.10260433]
[1727752897477,7.3202869,2634.2,2634.0,0.10260433]
[1727752897676,0.80794369,2634.3,2633.8,3.79677]
[1727752898019,4.2832769,2634.4,2633.8,3.79677]
[1727752898234,3.79607,2634.3,2633.9,0.10262628]
[1727752898444,3.79607,2634.3,2633.8,3.79677]
[1727752898590,3.79607,2634.3,2633.9,0.10262628]
[1727752898993,3.79622,2634.2,2633.9,0.10262628]
[1727752899214,3.79607,2634.3,2633.7,3.79692]
[1727752899408,3.79607,2634.3,2633.8,0.10264822]
[1727752899606,3.79607,2634.3,2633.7,3.79692]
[1727752899806,3.79607,2634.3,2633.7,4.635476]
[1727752900004,3.79624,2634.2,2633.8,0.10264822]
[1727752900206,3.79624,2634.2,2633.7,0.838556]
[1727752900207,3.79644,2634.1,2633.7,0.838556]
[1727752900532,7.3205869,2634.0,2633.8,0.10264822]
[1727752900837,3.79665,2633.9,2633.6,0.7917]
[1727752901007,3.79665,2633.9,2633.7,0.10284597]
[1727752901206,3.79644,2634.1,2633.7,0.10284597]
[1727752902127,7.3208669,2633.8,2633.7,0.10284597]
[1727752902527,3.79734,2633.5,2633.2,0.3807]
[1727752902837,3.5240769,2633.8,2633.2,0.3807]
[1727752903134,3.79739,2633.4,2633.3,0.10293377]
[1727752903431,7.59463,2633.5,2633.2,0.3807]
[1727752903756,0.7874,2633.3,2632.8,3.79822]
[1727752903945,0.7874,2633.3,2632.7,0.8115]
[1727752904231,0.7874,2633.3,2632.7,4.60975]
[1727752904232,4.58491,2633.3,2632.7,4.60975]
[1727752904404,4.58491,2633.3,2632.8,0.460975]
[1727752904618,0.7874,2633.3,2632.8,0.460975]
[1727752904798,0.7874,2633.3,2632.8,4.259185]
[1727752905638,4.58496,2633.3,2632.8,3.460975]
[1727752905795,4.58496,2633.3,2632.9,0.09970657]
[1727752905996,3.79766,2633.2,2632.9,0.09970657]
[1727752906197,0.7874,2633.3,2632.9,0.09970657]
[1727752906418,4.58492,2633.3,2632.9,0.09970657]
[1727752906621,0.7874,2633.3,2632.9,0.09970657]
[1727752906898,7.3214569,2633.4,2632.9,5.09462173]
[1727752906899,3.79738,2633.4,2632.9,5.09462173]
[1727752907914,3.79716,2633.6,2633.0,0.7687]
[1727752908242,3.79716,2633.6,2633.1,3.79771]
[1727752908451,8.1480169,2633.8,2633.2,0.456641]
[1727752908599,3.79703,2633.7,2633.2,0.5562817]
[1727752909383,4.62394,2633.8,2633.2,4.3538317]
[1727752909900,3.79717,2633.6,2633.2,0.5562817]
[1727752910109,3.79717,2633.6,2633.3,0.43539917]
[1727752910498,3.79717,2633.6,2633.4,0.09959679]
[1727752910705,3.79694,2633.7,2633.4,0.09959679]
[1727752912651,3.79717,2633.6,2633.4,0.09959679]
[1727752913249,3.79722,2633.5,2633.4,0.09959679]
[1727752913655,3.79694,2633.7,2633.0,0.7687]
[1727752913854,3.79716,2633.6,2633.1,3.85645649]
[1727752915122,3.79669,2633.9,2633.3,3.79749]
[1727752915332,3.79681,2633.8,2633.3,3.79749]
[1727752915522,3.79681,2633.8,2633.4,0.09972362]
[1727752915759,3.79681,2633.8,2633.4,0.56800498]
[1727752916216,3.79666,2633.9,2633.4,4.36535498]
[1727752916422,3.79666,2633.9,2633.5,0.8083]
[1727752916748,3.79666,2633.9,2633.6,0.09967972]
[1727752916953,8.125,2634.1,2633.6,0.09967972]
[1727752916954,7.35,2634.1,2633.6,0.61704183]
[1727752917161,8.39264,2634.4,2633.7,3.79684]
[1727752917457,3.79602,2634.4,2633.9,3.79662]
[1727752917648,3.79602,2634.4,2634.0,0.56854751]
[1727752917811,7.59203,2634.4,2634.0,0.56854751]
[1727752918016,3.79622,2634.2,2634.0,0.09959193]
[1727752918249,3.79601,2634.4,2633.8,3.7933]
[1727752918414,3.79615,2634.3,2633.9,0.09961388]
[1727752920261,3.79601,2634.4,2633.9,3.89624388]
[1727752920457,3.7961,2634.3,2633.9,0.09961388]
[1727752920669,3.7961,2634.3,2633.9,0.86858627]
[1727752921864,3.79625,2634.2,2633.9,0.86858627]
[1727752922230,3.79601,2634.4,2633.9,0.86858627]
[1727752922533,3.79618,2634.3,2633.9,0.86858627]
[1727752922727,7.59203,2634.4,2633.9,0.86858627]
[1727752922927,3.79601,2634.4,2633.9,0.86858627]
[1727752923133,3.79622,2634.2,2633.9,0.86858627]
[1727752923480,3.79622,2634.2,2633.9,0.09961388]
[1727752923649,3.7965,2634.0,2633.9,0.09961388]
[1727752923975,7.59256,2634.2,2633.9,0.09961388]
[1727752924385,3.79622,2634.2,2633.9,0.09961388]
[1727752925478,7.59252,2634.2,2633.9,0.09961388]
[1727752925672,7.59254,2634.2,2633.9,0.09961388]
[1727752925991,3.79537,2634.8,2634.2,3.79611]
[1727752926139,3.79515,2635.0,2634.3,1.257631]
[1727752926338,3.79531,2634.9,2634.3,4.35702206]
[1727752926651,3.79531,2634.9,2634.3,8.15301206]
[1727752926969,3.79515,2635.0,2634.5,3.79573]
[1727752927135,3.79484,2635.2,2634.5,3.79573]
[1727752927344,3.79484,2635.2,2634.6,0.86071299]
[1727752927532,7.58971,2635.2,2634.6,0.86071299]
[1727752927878,3.79498,2635.1,2634.6,0.86071299]
[1727752928081,3.79507,2635.0,2634.6,0.86071299]
[1727752928659,3.79529,2634.9,2634.6,0.86071299]
[1727752929670,3.79499,2635.1,2634.6,0.86071299]
[1727752930267,3.79506,2635.0,2634.6,0.86071299]
[1727752930471,3.79499,2635.1,2634.6,0.86071299]
[1727752930861,3.79524,2634.9,2634.6,0.86071299]
[1727752931871,3.79499,2635.1,2634.6,0.86071299]
[1727752933190,3.79522,2634.9,2634.6,0.86071299]
[1727752933549,3.79499,2635.1,2634.6,0.86071299]
[1727752933550,7.59003,2635.1,2634.6,0.86071299]
[1727752933756,3.79516,2635.0,2634.6,0.86071299]
[1727752934469,3.79522,2634.9,2634.6,0.86071299]
[1727752936400,3.79539,2634.8,2634.6,0.86071299]
[1727752939060,3.79522,2634.9,2634.6,0.86071299]
[1727752939503,7.59054,2634.9,2634.6,0.86071299]
[1727752939867,7.59052,2634.9,2634.6,0.86071299]
[1727752940068,3.79522,2634.9,2634.6,0.86071299]
[1727752940491,0.759021,2634.9,2634.6,0.86071299]
[1727752940699,7.3195669,2634.7,2634.6,0.09931299]
[1727752941218,7.3195669,2634.7,2633.9,0.3807]
[1727752941219,3.79636,2634.1,2633.9,0.3807]
[1727752941367,3.79636,2634.1,2633.8,0.7708]
[1727752941368,3.7965,2634.0,2633.8,0.7708]
[1727752941705,3.79636,2634.1,2633.9,0.09909043]
[1727752941926,3.7965,2634.0,2633.9,0.09909043]
[1727752942067,4.555611,2634.1,2633.9,0.09909043]
[1727752942266,3.79636,2634.1,2634.0,0.0990644]
[1727752942467,7.59282,2634.1,2633.5,3.79719]
[1727752942703,3.79636,2634.1,2633.6,0.09915218]
[1727752943236,7.59286,2634.1,2633.6,3.09915218]
[1727752943528,3.79636,2634.1,2633.6,3.09915218]
[1727752944126,3.79613,2634.3,2633.7,0.8082]
[1727752944294,0.826,2634.6,2633.9,3.79661]
[1727752944495,0.826,2634.6,2634.0,3.0990644]
[1727752944726,4.62168,2634.6,2634.1,0.8185]
[1727752944892,4.62168,2634.6,2634.2,0.09926175]
[1727752946195,3.79568,2634.6,2634.2,0.09926175]
[1727752948249,3.79592,2634.5,2634.2,0.09926175]
[1727752949040,7.59204,2634.4,2634.2,0.09926175]
[1727752949197,3.79607,2634.3,2634.2,0.09926175]
[1727752949624,7.59346,2633.9,2633.6,0.7839]
[1727752949893,3.79672,2633.9,2633.6,0.7839]
[1727752950095,3.79672,2633.9,2633.7,0.09955545]
[1727752950338,7.59346,2633.9,2633.7,0.09955545]
[1727752950518,3.79672,2633.9,2633.7,0.09955545]
[1727752950724,3.79679,2633.8,2633.7,0.09955545]
[1727752951131,3.79679,2633.8,2633.4,0.7839]
[1727752951328,7.59351,2633.9,2633.7,0.09963724]
[1727752951509,7.59351,2633.9,2633.4,0.7839]
[1727752951713,3.79695,2633.7,2633.4,0.7839]
[1727752951897,3.79709,2633.6,2633.4,3.0]
[1727752952097,7.3211669,2633.6,2633.2,0.7839]
[1727752952333,7.3212369,2633.6,2633.2,0.7839]
[1727752952540,3.79723,2633.5,2633.2,0.7839]
[1727752954375,3.79696,2633.7,2633.2,0.7839]
[1727752954500,3.79714,2633.6,2633.2,0.7839]
[1727752954703,3.79714,2633.6,2633.2,1.542072]
[1727752954908,3.79737,2633.4,2633.2,0.7839]
[1727752955109,3.79737,2633.4,2632.9,3.7891]
[1727752955317,3.7973,2633.5,2632.9,3.7891]
[1727752955513,3.79751,2633.3,2632.9,3.7891]
[1727752955742,3.79751,2633.3,2632.9,0.7891]
[1727752955743,3.79774,2633.2,2632.9,0.7891]
[1727752955918,3.79788,2633.1,2632.5,4.58769]
[1727752956128,3.79797,2633.0,2632.5,0.7891]
[1727752956447,3.79788,2633.1,2632.5,0.86506508]
[1727752956629,3.79788,2633.1,2632.6,4.257232]
[1727752957103,3.79767,2633.2,2632.7,3.79835]
[1727752958463,11.14713,2633.6,2633.0,3.79793]
[1727752958755,11.14713,2633.6,2633.1,0.462193]
[1727752958953,11.1178869,2633.8,2633.1,4.259873]
[1727752959316,3.79701,2633.7,2633.1,4.259873]
[1727752959742,3.7971,2633.6,2633.1,4.259873]
[1727752959940,3.7971,2633.6,2633.2,0.8057733]
[1727752961467,3.79726,2633.5,2633.1,3.462193]
[1727752961854,3.7971,2633.6,2633.1,7.259993]
[1727752962263,3.7971,2633.6,2633.1,3.462193]
[1727752962467,3.79738,2633.4,2633.1,3.462193]
[1727752962975,3.7971,2633.6,2633.1,0.462193]
[1727752963630,3.7971,2633.6,2633.1,4.259973]
[1727752964069,3.7971,2633.6,2633.2,1.1057793]
[1727752964267,3.7971,2633.6,2633.3,0.7685]
[1727752965869,3.7971,2633.6,2633.4,0.09678108]
[1727752966465,3.79681,2633.8,2633.4,0.09678108]
[1727752966665,3.79681,2633.8,2633.3,0.7685]
[1727752966982,3.79701,2633.7,2633.4,0.09678108]
[1727752967342,3.79716,2633.6,2633.4,0.09678108]
[1727752970181,11.1178969,2633.8,2633.4,0.09678108]
[1727752970547,7.59382,2633.8,2633.4,0.09678108]
[1727752971579,4.3149769,2634.0,2633.4,0.09678108]
[1727752971580,3.79676,2633.9,2633.4,0.09678108]
[1727752971785,3.7968,2633.8,2633.4,0.09678108]
[1727752972079,3.79693,2633.7,2633.3,0.7685]
[1727752972289,3.79693,2633.7,2633.4,0.09673607]
[1727752972454,3.7968,2633.8,2633.4,0.09673607]
[1727752972643,7.59369,2633.8,2633.4,0.09673607]
[1727752972980,7.59369,2633.8,2633.3,0.7685]
[1727752973382,3.7968,2633.8,2633.4,0.09673607]
[1727752973560,7.59369,2633.8,2633.4,0.09673607]
[1727752974288,3.7968,2633.8,2633.4,0.09673607]
[1727752974892,7.59373,2633.8,2633.4,0.09673607]
[1727752975098,3.79698,2633.7,2633.4,0.09673607]
[1727752976197,3.79708,2633.6,2633.4,0.09673607]
[1727752979933,3.79689,2633.8,2633.4,0.09673607]
[1727752980074,7.59352,2633.9,2633.3,0.7685]
[1727752980270,3.79717,2633.6,2633.3,0.7685]
[1727752980485,3.79723,2633.5,2633.3,0.7685]
[1727752980691,3.79723,2633.5,2633.4,0.09671971]
[1727752980894,3.79667,2633.9,2633.4,0.09671971]
[1727752981212,0.7703,2634.1,2633.6,3.0]
[1727752981213,3.7964,2634.1,2633.6,3.0]
[1727752981375,3.7964,2634.1,2633.8,0.7997]
[1727752981896,7.59284,2634.1,2633.9,0.09659769]
[1727752982223,3.7965,2634.0,2633.9,0.09659769]
[1727752985350,8.0798669,2634.0,2633.9,0.09659769]
[1727752985604,8.0798669,2634.0,2633.5,0.8146]
[1727752985605,3.79737,2633.4,2633.3,0.8105]
[1727752985911,3.79737,2633.4,2632.9,0.8105]
[1727752985912,3.79794,2633.0,2632.9,0.8105]
[1727752986065,3.79823,2632.8,2632.7,0.8182]
[1727752986270,3.7981,2632.9,2632.5,0.8182]
[1727752986812,3.79831,2632.8,2632.5,0.8182]
[1727752987178,3.7981,2632.9,2632.5,0.8182]
[1727752987610,7.59628,2632.9,2632.5,0.8182]
[1727752987791,3.79826,2632.8,2632.5,0.8182]
[1727752988895,3.7984,2632.7,2632.3,0.7503]
[1727752989922,3.79811,2632.9,2632.3,0.7503]
[1727752990104,3.79811,2632.9,2632.3,4.54917]
[1727752990304,3.79811,2632.9,2632.3,8.34804]
[1727752990918,3.79787,2633.1,2632.5,3.79866]
[1727752992375,7.59576,2633.1,2632.5,3.79866]
[1727752992775,4.3192769,2633.2,2632.3,5.383994]
[1727752992980,3.79831,2632.8,2632.3,0.7503]
[1727752993460,7.59668,2632.8,2632.3,0.7503]
[1727752993589,3.79838,2632.7,2632.3,0.7503]
[1727752993929,3.79831,2632.8,2632.3,0.7503]
[1727752994081,3.79854,2632.6,2632.1,3.7896]
[1727752996018,3.79854,2632.6,2632.2,0.09708154]
[1727752999095,3.79842,2632.7,2632.2,0.09708154]
[1727752999487,3.79853,2632.6,2632.2,0.09708154]
[1727752999713,3.79839,2632.7,2632.2,0.09708154]
[1727753002937,3.79854,2632.6,2632.2,0.09708154]
[1727753003105,3.79867,2632.5,2632.2,0.09708154]
[1727753003504,3.79854,2632.6,2632.2,0.09708154]
[1727753006312,7.59716,2632.6,2632.2,0.09708154]
[1727753006523,3.79854,2632.6,2632.2,0.09708154]
[1727753006884,7.59718,2632.6,2632.2,0.09708154]
[1727753007091,5.06919466,2632.6,2632.2,0.09708154]
[1727753010838,8.86780466,2632.6,2632.2,0.09708154]
[1727753011037,3.7987,2632.5,2632.2,0.09708154]
[1727753013725,7.3228869,2632.4,2632.2,0.09708154]
[1727753013929,4.62925,2632.3,2631.9,1.1981]
[1727753014146,3.79919,2632.2,2631.9,0.3807]
[1727753014349,3.79919,2632.2,2632.0,0.09772294]
[1727753015057,3.79924,2632.1,2631.8,0.3807]
[1727753016463,7.3231769,2632.2,2631.8,0.3807]
[1727753016755,8.59164846,2632.2,2631.8,0.3807]
[1727753018932,3.5240769,2632.0,2631.7,4.61722]
[1727753019427,3.5240769,2632.0,2631.7,0.8174]
[1727753020553,3.79926,2632.1,2631.7,0.8174]
[1727753020931,5.12137585,2632.1,2631.7,0.8174]
[1727753023483,3.79926,2632.1,2631.7,0.8174]
[1727753024745,3.79955,2631.9,2631.7,0.8174]
[1727753024950,3.79955,2631.9,2631.5,0.7661]
[1727753025859,7.59917,2631.9,2631.6,0.09818346]
[1727753026161,3.79969,2631.8,2631.6,0.09818346]
[1727753026353,3.79955,2631.9,2631.6,0.09818346]
[1727753026542,4.91184669,2631.9,2631.6,0.09818346]
[1727753027890,8.71151669,2631.9,2631.6,0.09818346]
[1727753028182,4.91184669,2631.9,2631.6,0.09818346]
[1727753028886,8.71145669,2631.9,2631.6,0.09818346]
[1727753031079,3.7997,2631.8,2631.6,0.09818346]
[1727753032109,3.79982,2631.7,2631.6,0.09818346]
[1727753032885,3.79976,2631.8,2631.6,0.09818346]
[1727753034632,3.79982,2631.7,2631.6,0.09818346]
[1727753044329,7.59949,2631.8,2631.6,0.09818346]
[1727753044509,3.79982,2631.7,2631.6,0.09818346]
[1727753046144,3.79955,2631.9,2631.6,0.09818346]
[1727753046363,3.79952,2632.0,2631.6,0.09818346]
[1727753047534,3.79951,2632.0,2631.6,0.09818346]
[1727753047695,3.79956,2631.9,2631.6,0.09818346]
[1727753048144,7.59904,2632.0,2631.6,0.09818346]
[1727753048564,3.79951,2632.0,2631.6,0.09818346]
[1727753048864,7.599,2632.0,2631.6,0.09818346]
[1727753049374,3.7996,2631.9,2631.6,0.09818346]
[1727753052077,3.7991,2632.2,2631.7,0.822]
[1727753052361,3.7991,2632.2,2631.8,0.822]
[1727753052726,3.7991,2632.2,2631.9,0.09825267]
[1727753055748,7.59832,2632.2,2631.9,0.09825267]
[1727753055981,3.7991,2632.2,2631.9,0.09825267]
[1727753056588,3.79926,2632.1,2631.9,0.09825267]
[1727753057345,3.79939,2632.0,2631.9,0.09825267]
[1727753057549,5.42538577,2632.0,2631.9,0.09825267]
[1727753057745,5.42538577,2632.0,2631.4,0.3807]
[1727753057746,3.80011,2631.5,2631.4,0.7806]
[1727753058146,3.80011,2631.5,2631.4,0.87883152]
[1727753058348,3.80011,2631.5,2631.4,0.09823152]
[1727753058658,3.80011,2631.5,2631.2,0.7806]
[1727753058863,3.80011,2631.5,2631.4,0.09831343]
[1727753059169,3.80011,2631.5,2631.2,0.7806]
[1727753059480,3.80011,2631.5,2631.3,0.09833951]
[1727753059686,3.80011,2631.5,2631.2,0.7806]
[1727753060139,3.80011,2631.5,2631.3,0.09833951]
[1727753060486,3.80011,2631.5,2631.2,0.7806]
[1727753060693,3.80011,2631.5,2631.4,0.09831752]
[1727753060889,3.80011,2631.5,2631.2,0.7806]
[1727753061202,3.80011,2631.5,2631.4,0.09831752]
[1727753061359,3.80011,2631.5,2631.3,0.09833951]
[1727753061554,3.80011,2631.5,2631.2,0.7806]